fUSD/lending_fUSD_20240712
["ID","MTS","AMOUNT","RATE_DAILY","PERIOD"]
[331832313,1720774251007,-636.16,0.00013808,2]
[331832314,1720774251016,-500.0,0.00013808,2]
[331832315,1720774251025,-500.0,0.00013808,2]
[331832316,1720774251034,-500.0,0.00013808,2]
[331832317,1720774251044,-633.73,0.00013808,2]
[331832318,1720774251054,-185.57517087,0.00013808,2]
[331832319,1720774251183,-278.88240566,0.00013698,2]
[331832320,1720774251195,-337.37759434,0.00013698,2]
[331832321,1720774251204,-314.42482913,0.00013808,2]
[331832322,1720774251213,-500.0,0.00013808,2]
[331832323,1720774251222,-500.0,0.00013808,2]
[331832324,1720774251232,-377.43,0.00013808,2]
[331832325,1720774251241,-500.0,0.00013808,2]
[331832326,1720774251251,-270.04,0.00013808,2]
[331832327,1720774251260,-500.0,0.00013808,2]
[331832328,1720774251269,-258.78496899,0.00013808,2]
[331832329,1720774251278,-500.0,0.00013808,2]
[331832330,1720774251287,-566.46,0.00013808,2]
[331832331,1720774251297,-500.0,0.00013808,2]
[331832332,1720774251306,-500.0,0.00013808,2]
[331832333,1720774251315,-500.0,0.00013808,2]
[331832334,1720774251324,-500.0,0.00013808,2]
[331832335,1720774251333,-500.0,0.00013808,2]
[331832336,1720774251343,-154.91745865,0.00013808,2]
[331832337,1720774251359,-310.00217,0.00013808,2]
[331832338,1720774251370,-35.08037135,0.00013808,2]
[331832339,1720774251381,-352.61962865,0.00013808,2]
[331832340,1720774251392,-147.38037135,0.00013808,2]
[331832341,1720774251401,-377.94,0.00013808,2]
[331832342,1720774251410,-289.3,0.00013808,2]
[331832343,1720774251419,-500.0,0.00013808,2]
[331832344,1720774251428,-500.0,0.00013808,2]
[331832345,1720774251438,-500.0,0.00013808,2]
[331832346,1720774251447,-500.0,0.00013808,2]
[331832347,1720774251456,-151.16352602,0.00013808,2]
[331832348,1720774251467,-259.83647398,0.00013808,2]
[331832349,1720774251476,-500.0,0.00013808,2]
[331832350,1720774251485,-196.99536528,0.00013808,2]
[331832351,1720774251496,-303.00463472,0.00013808,2]
[331832352,1720774251653,-304.2,0.00013808,2]
[331832353,1720774251664,-500.0,0.00013808,2]
[331832354,1720774251674,-500.0,0.00013808,2]
[331832355,1720774251684,-500.0,0.00013808,2]
[331832356,1720774251693,-500.0,0.00013808,2]
[331832357,1720774251703,-500.0,0.00013808,2]
[331832358,1720774251712,-500.0,0.00013808,2]
[331832359,1720774251722,-500.0,0.00013808,2]
[331832360,1720774251731,-591.62,0.00013808,2]
[331832361,1720774251740,-212.14848873,0.00013808,2]
[331832362,1720774251749,-500.0,0.00013808,2]
[331832363,1720774251758,-500.0,0.00013808,2]
[331832364,1720774251767,-320.6242285,0.00013808,2]
[331832365,1720774251778,-179.3757715,0.00013808,2]
[331832366,1720774251787,-500.0,0.00013808,2]
[331832367,1720774251797,-500.0,0.00013808,2]
[331832368,1720774251806,-500.0,0.00013808,2]
[331832369,1720774251815,-500.0,0.00013808,2]
[331832370,1720774251824,-500.0,0.00013808,2]
[331832371,1720774251833,-500.0,0.00013808,2]
[331832372,1720774251843,-366.30706211,0.00013808,2]
[331832383,1720774406784,269.93,0.00010647,2]
[331832413,1720774454023,2805.6,0.00011,2]
[331832414,1720774454047,194.4,0.00011,2]
[331832421,1720774481454,3000.0,0.00011,2]
[331832426,1720774503902,1000.0,0.00011,2]
[331832437,1720774544488,508.09081147,0.00027,120]
[331832474,1720774750906,158.0016101,0.00011199,2]
[331832516,1720774941610,383.21,0.00010652,2]
[331832517,1720774961054,227.32181018,0.00011199,2]
[331832528,1720775053799,3041.82785286,0.00011199,2]
[331832530,1720775063034,7339.33134264,0.00011199,2]
[331832533,1720775080935,6232.8378271,0.00011199,2]
[331832537,1720775099868,151.071218,0.00025,62]
[331832538,1720775110927,2775.47116722,0.00011199,2]
[331832539,1720775110947,3457.36665988,0.00011199,2]
[331832540,1720775132555,2378.84774316,0.00011199,2]
[331832541,1720775133993,1656.74479521,0.00011199,2]
[331832545,1720775161538,289.46470179,0.00027,120]
[331832547,1720775176744,1014.73552571,0.00011199,2]
[331832549,1720775186900,2198.85723835,0.00011199,2]
[331832562,1720775249870,483.98924761,0.00011199,2]
[331832563,1720775249917,1708.54139277,0.00011199,2]
[331832564,1720775252267,624.28077392,0.00011199,2]
[331832566,1720775253282,872.37818886,0.00011199,2]
[331832567,1720775254905,158.0016101,0.00011199,2]
[331832573,1720775268374,199.84750373,0.00011199,2]
[331832575,1720775280644,304.75260098,0.00011199,2]
[331832576,1720775283190,5097.95954702,0.00011199,2]
[331832577,1720775284838,316.54004843,0.00011199,2]
[331832578,1720775293482,564.82996691,0.00011199,2]
[331832580,1720775299851,155.91142605,0.00011199,2]
[331832582,1720775307157,155.50140611,0.00011199,2]
[331832584,1720775314080,358.54657795,0.00011199,2]
[331832585,1720775314678,163.56619356,0.00011199,2]
[331832587,1720775329946,269.0153369,0.00011199,2]
[331832589,1720775332080,254.227224,0.00011199,2]
[331832594,1720775342785,200.09539783,0.00011199,2]
[331832596,1720775351628,175.66694853,0.00011199,2]
[331832597,1720775351666,233.0278951,0.00011199,2]
[331832598,1720775352336,155.0,0.00011199,2]
[331832599,1720775353423,1701.76875133,0.00011199,2]
[331832600,1720775353444,14607.74735212,0.00011199,2]
[331832605,1720775359104,158.61302601,0.00011199,2]
[331832606,1720775376367,216.93020437,0.00011199,2]
[331832607,1720775378880,438.81150089,0.00011199,2]
[331832609,1720775382679,438.48996722,0.00011199,2]
[331832612,1720775383777,257.20648936,0.00011199,2]
[331832613,1720775384377,253.36,0.0001137,2]
[331832615,1720775393672,329.08465988,0.00011199,2]
[331832616,1720775398834,253.35,0.0001137,2]
[331832617,1720775403022,150.0,0.00011199,2]
[331832618,1720775403214,150.0,0.00011199,2]
[331832619,1720775403457,150.0,0.00011199,2]
[331832620,1720775403662,150.0,0.00011199,2]
[331832621,1720775403851,150.0,0.00011199,2]
[331832622,1720775404274,238.03927405,0.00011199,2]
[331832624,1720775420604,2058.3675261,0.00011199,2]
[331832625,1720775420623,5327.32402881,0.00011199,2]
[331832641,1720775431521,-2820.0,0.00012,2]
[331832642,1720775431582,-861.0,0.00012,2]
[331832643,1720775431591,-179.61027696,0.00012073,2]
[331832644,1720775431601,-227.32181018,0.00012273,2]
[331832645,1720775431611,-235.68358109,0.00012273,2]
[331832646,1720775431620,-269.90760611,0.00012273,2]
[331832647,1720775431629,-250.0,0.00012288,2]
[331832648,1720775431639,-729.24099617,0.00012288,2]
[331832649,1720775431651,-975.40375746,0.00012288,2]
[331832650,1720775431662,-3064.83117099,0.00012288,2]
[331832651,1720775431672,-455.42051719,0.00012314,2]
[331832652,1720775431681,-400.0,0.00012314,2]
[331832653,1720775431691,-187.28,0.00012317,2]
[331832654,1720775431701,-5334.35740126,0.0001236,2]
[331832655,1720775431749,-506.58096069,0.0001236,2]
[331832656,1720775431760,-1284.35585131,0.0001236,2]
[331832657,1720775431771,-726.72999162,0.0001236,2]
[331832658,1720775431781,-2194.55656055,0.0001236,2]
[331832659,1720775431809,-781.03258899,0.0001236,2]
[331832660,1720775431821,-5958.09664558,0.0001236,2]
[331832661,1720775431829,-1000.0,0.00012431,2]
[331832662,1720775431838,-186.01,0.000128,2]
[331832663,1720775431848,-3160.9,0.00012809,2]
[331832664,1720775431859,-383.21,0.00012916,2]
[331832665,1720775431868,-203.0,0.00012968,2]
[331832666,1720775431878,-2141.94953477,0.00013118,2]
[331832667,1720775431887,-150.0,0.00013127,2]
[331832669,1720775431896,-1031.45986367,0.00013128,2]
[331832670,1720775431906,-150.0,0.0001337,2]
[331832671,1720775431915,-1690.0983,0.00013398,2]
[331832672,1720775431925,-283.914,0.000134,2]
[331832673,1720775431934,-4764.8295,0.000134,2]
[331832674,1720775431944,-2284.68143242,0.00013416,2]
[331832675,1720775431953,-1314.95404253,0.00013416,2]
[331832676,1720775431964,-375.11615108,0.00013416,2]
[331832677,1720775431978,-1337.66818969,0.00013416,2]
[331832678,1720775431987,-198.7631174,0.00013416,2]
[331832679,1720775431997,-161.39117134,0.00013443,2]
[331832680,1720775432006,-307.35504806,0.00013443,2]
[331832681,1720775432016,-292.47425253,0.00013472,2]
[331832682,1720775432026,-175.90015181,0.00013489,2]
[331832683,1720775432035,-332.9570449,0.0001349,2]
[331832684,1720775432048,-332.9570449,0.0001349,2]
[331832685,1720775432058,-332.9570449,0.0001349,2]
[331832686,1720775432067,-13008.02851535,0.000135,2]
[331832687,1720775432083,-260266.52333835,0.000135,2]
[331832688,1720775432095,-35641.83953345,0.000135,2]
[331832689,1720775432106,-13828.04019545,0.000135,2]
[331832727,1720775437666,-2450.76963214,0.000135,2]
[331832728,1720775437678,-99431.01740205,0.000135,2]
[331832729,1720775437728,-1174.49965594,0.000135,2]
[331832730,1720775437788,-4100.13798692,0.000135,2]
[331832731,1720775437800,-873.91134793,0.000135,2]
[331832732,1720775437812,-624.777,0.000135,2]
[331832733,1720775437864,-260.43349151,0.000135,2]
[331832874,1720775439563,-1531.61449012,0.000135,2]
[331832881,1720775439624,-719.26763437,0.000135,2]
[331832884,1720775439636,-917.22354903,0.000135,2]
[331832886,1720775439682,-397.81931792,0.000135,2]
[331832895,1720775440191,-4204.63459243,0.000135,2]
[331832896,1720775440202,-795.01464,0.000135,2]
[331832897,1720775440214,-206356.22672169,0.000135,2]
[331832898,1720775440224,-1358.7,0.000135,2]
[331832899,1720775440235,-568.51573474,0.000135,2]
[331832900,1720775440247,-991.10175948,0.000135,2]
[331832901,1720775440260,-125668.81483672,0.000135,2]
[331832902,1720775440271,-5060.62730203,0.000135,2]
[331832903,1720775440282,-124259.47002143,0.000135,2]
[331832904,1720775440303,-597.37821255,0.000135,2]
[331832905,1720775440315,-465.69315318,0.000135,2]
[331832906,1720775440327,-906.20344004,0.000135,2]
[331832907,1720775440338,-33276.14929742,0.000135,2]
[331832932,1720775442620,-500.0,0.000135,2]
[331832933,1720775442632,-880.36175698,0.000135,2]
[331832934,1720775442643,-606.79809421,0.000135,2]
[331832935,1720775442654,-730.07140233,0.000135,2]
[331832936,1720775442665,-652.62529538,0.000135,2]
[331832939,1720775444346,-45852.25499493,0.000135,2]
[331832940,1720775444358,-9759.0,0.000135,2]
[331832941,1720775444370,-460.88513795,0.000135,2]
[331832942,1720775444381,-350.58422108,0.000135,2]
[331832943,1720775444399,-2008.46232275,0.000135,2]
[331832944,1720775444412,-1206.72981683,0.000135,2]
[331832945,1720775444423,-4675.74706937,0.000135,2]
[331832946,1720775444439,-628.210864,0.000135,2]
[331832947,1720775444451,-117867.54389342,0.000135,2]
[331832948,1720775444464,-978977.59119716,0.000135,2]
[331832958,1720775445666,-943.31862009,0.000135,2]
[331832959,1720775445783,-1086.34273564,0.000135,2]
[331832960,1720775445847,-1283.8450912,0.000135,2]
[331832961,1720775445858,-500.0,0.000135,2]
[331832962,1720775445870,-2675.11119103,0.000135,2]
[331832963,1720775445911,-66815.9753352,0.000135,2]
[331832964,1720775445923,-7307.43495099,0.000135,2]
[331832965,1720775445938,-734.01641473,0.000135,2]
[331832966,1720775445974,-1088.14,0.000135,2]
[331832970,1720775587501,385.96,0.0001072,2]
[331832975,1720775626124,3075.42618675,0.00011199,2]
[331832985,1720775688627,3123.46048771,0.00011199,2]
[331832986,1720775690185,322.54674077,0.00011199,2]
[331832987,1720775733930,158.0016101,0.00011199,2]
[331832989,1720775745853,411.38593518,0.00011199,2]
[331832990,1720775780174,1043.21965598,0.00011199,2]
[331832995,1720775838642,266.56098414,0.00011199,2]
[331832999,1720775892594,382.74326157,0.00011199,2]
[331833002,1720775903382,400.0,0.00011199,2]
[331833004,1720775950592,2737.11267676,0.00011199,2]
[331833005,1720776000774,1505.33547872,0.00011199,2]
[331833006,1720776040623,227.32181018,0.00011199,2]
[331833010,1720776123719,800.0,0.00026986,120]
[331833012,1720776157856,200.0,0.00011199,2]
[331833013,1720776164647,433.60114333,0.00011199,2]
[331833014,1720776164671,1552.68337425,0.00011199,2]
[331833015,1720776190359,3928.93911863,0.00011368,2]
[331833016,1720776215949,158.0016101,0.00011199,2]
[331833017,1720776233211,400.81,9.605e-05,2]
[331833018,1720776247426,960.3459936,0.00011368,2]
[331833019,1720776317467,150.0,0.00025,60]
[331833020,1720776321050,526.92970599,9e-05,2]
[331833025,1720776404372,1631.34797349,0.00011199,2]
[331833026,1720776457639,800.0,0.0001127,2]
[331833027,1720776484743,167.25339395,0.00011199,2]
[331833029,1720776513073,1662.98460823,0.00011199,2]
[331833033,1720776515779,150.0,0.00011297,2]
[331833040,1720776545565,250.0,0.00011281,2]
[331833044,1720776574628,227.32181018,0.00011199,2]
[331833047,1720776592296,-2058.16,0.00011398,2]
[331833048,1720776592325,-818.18,0.00011401,2]
[331833049,1720776592354,-448.59,0.00011441,2]
[331833050,1720776592384,-300.0,0.00011446,2]
[331833051,1720776592415,-2710.41350081,0.00011447,2]
[331833052,1720776592460,-6335.34350081,0.00011447,2]
[331833053,1720776592495,-558.62164862,0.00011447,2]
[331833054,1720776604623,227.32181018,0.00011199,2]
[331833069,1720776631817,-500.0,0.00011435,2]
[331833070,1720776631826,-7398.34221736,0.00011447,2]
[331833071,1720776631838,-892.30034146,0.00011447,2]
[331833072,1720776631899,-6004.97879094,0.00011447,2]
[331833073,1720776631909,-736.05203984,0.00011447,2]
[331833074,1720776631919,-500.0,0.00011468,2]
[331833075,1720776631928,-186.03,0.00011653,2]
[331833076,1720776631937,-250.0,0.00011667,2]
[331833077,1720776631947,-7055.75347138,0.00011713,2]
[331833078,1720776631986,-2554.12652862,0.00011713,2]
[331833079,1720776631995,-499.99,0.00011713,2]
[331833080,1720776632007,-200.0,0.0001172,2]
[331833081,1720776632017,-876.21,0.0001172,2]
[331833082,1720776632029,-999.99837823,0.000118,2]
[331833083,1720776632039,-400.81,0.00011869,2]
[331833084,1720776632048,-299.99,0.0001197,2]
[331833085,1720776632058,-1000.0,0.00011984,2]
[331833086,1720776632068,-150.0,0.00011985,2]
[331833087,1720776632079,-2536.93,0.00011986,2]
[331833088,1720776632090,-2786.47,0.00011986,2]
[331833089,1720776632102,-391.75,0.00011986,2]
[331833090,1720776632112,-8318.0,0.00011995,2]
[331833091,1720776632123,-213.22,0.00012045,2]
[331833092,1720776632136,-700.0,0.000121,4]
[331833093,1720776632145,-172.48,0.00012195,2]
[331833094,1720776632157,-1500.0,0.000122,4]
[331833095,1720776632167,-2300.0,0.000123,4]
[331833096,1720776632179,-200.0,0.00012314,2]
[331833097,1720776632190,-200.0,0.00012314,2]
[331833098,1720776632201,-3100.0,0.000124,4]
[331833099,1720776632210,-3800.0,0.000125,4]
[331833100,1720776632221,-700.0,0.000126,4]
[331833101,1720776632233,-800.0,0.00012679,2]
[331833102,1720776632244,-700.0,0.000127,4]
[331833103,1720776632254,-700.0,0.000128,4]
[331833104,1720776632265,-11575.5,0.00012893,2]
[331833105,1720776632274,-10620.07,0.00012893,2]
[331833106,1720776632284,-897.65917408,0.00012899,2]
[331833107,1720776632301,-1400.0,0.00012899,2]
[331833108,1720776632314,-1102.80292592,0.00012899,2]
[331833109,1720776632323,-700.0,0.000129,4]
[331833110,1720776632331,-2655.43280357,0.00012999,2]
[331833111,1720776632342,-39433.67205315,0.00012999,2]
[331833113,1720776637735,-1161.26824244,0.00012999,2]
[331833114,1720776637751,-910.8288243,0.00012999,2]
[331833115,1720776639715,-8597.9,0.00012999,2]
[331833116,1720776639784,-40.13583542,0.00012999,2]
[331833117,1720776639816,-542.07987209,0.00012999,2]
[331833118,1720776639965,-1421.79250694,0.00012999,2]
[331833153,1720776640527,-1177.0965,0.00012999,2]
[331833219,1720776642924,-49054.52253702,0.00012999,2]
[331833220,1720776642934,-20182.59429208,0.00012999,2]
[331833221,1720776642945,-2248.95674392,0.00012999,2]
[331833230,1720776644636,-827.25795296,0.00012999,2]
[331833231,1720776644650,-545.73048934,0.00012999,2]
[331833232,1720776644662,-121200.73134677,0.00012999,2]
[331833233,1720776644671,-2200.02980555,0.00013128,2]
[331833234,1720776644681,-272.71985008,0.00013128,2]
[331833235,1720776644690,-196.4683171,0.00013128,2]
[331833236,1720776644700,-1658.70067135,0.00013128,2]
[331833237,1720776644709,-385.31605884,0.00013159,2]
[331833238,1720776644718,-200.0,0.00013185,2]
[331833239,1720776644728,-16010.1839,0.000133,2]
[331833240,1720776644737,-617.9493,0.000133,2]
[331833241,1720776644747,-845.91534518,0.000133,2]
[331833242,1720776644757,-978.859,0.000133,2]
[331833243,1720776644766,-152.54482884,0.000133,2]
[331833244,1720776644776,-313.5754323,0.000133,2]
[331833245,1720776644786,-798.52315,0.0001337,2]
[331833246,1720776644796,-75464.3302,0.000134,2]
[331833247,1720776644806,-1000.0,0.000134,2]
[331833248,1720776644815,-7762.3759,0.000134,2]
[331833249,1720776644825,-4534.84459588,0.000134,2]
[331833250,1720776644835,-500.0,0.000134,2]
[331833251,1720776644846,-48482.5511,0.000134,2]
[331833252,1720776644856,-159.80473577,0.000134,2]
[331833253,1720776644868,-162.76425195,0.000134,2]
[331833254,1720776644877,-845.91534518,0.000134,2]
[331833255,1720776644887,-169.07856241,0.000134,2]
[331833256,1720776644896,-315.47416888,0.00013472,2]
[331833257,1720776644905,-309409.003332,0.000135,2]
[331833258,1720776644914,-24725.46314904,0.000135,2]
[331833259,1720776644939,-1040.19657283,0.000135,2]
[331833260,1720776644966,-2074.49565675,0.000135,2]
[331833261,1720776644979,-314.105432,0.000135,2]
[331833304,1720776645839,-2133.07562019,0.000135,2]
[331833305,1720776645853,-849.17109353,0.000135,2]
[331833306,1720776645865,-626.08111507,0.000135,2]
[331833307,1720776645929,-3750.90111708,0.000135,2]
[331833308,1720776645943,-348.8603977,0.000135,2]
[331833309,1720776645956,-6028.6047016,0.000135,2]
[331833310,1720776645970,-50756.42281221,0.000135,2]
[331833311,1720776645981,-5839.51800013,0.000135,2]
[331833312,1720776645994,-538.14233343,0.000135,2]
[331833313,1720776646007,-591.35198458,0.000135,2]
[331833314,1720776646019,-493.70431179,0.000135,2]
[331833315,1720776646037,-415.0,0.000135,2]
[331833316,1720776646053,-6742.14006044,0.000135,2]
[331833317,1720776646137,-902.19057551,0.000135,2]
[331833319,1720776685800,154.74,0.00010959,2]
[331833320,1720776696280,773.7,0.00010959,2]
[331833321,1720776710476,259.28218074,0.00010959,2]
[331833322,1720776762376,2976.4199,0.00011347,2]
[331833323,1720776773121,290.86662742,0.00010959,2]
[331833324,1720776809249,374.63,0.00010877,2]
[331833326,1720776874041,874.40539128,0.00011199,2]
[331833327,1720776877126,208.03081409,0.00010877,2]
[331833331,1720776945339,1443.98568787,0.00011199,2]
[331833332,1720776945361,3007.75052881,0.00011199,2]
[331833333,1720776951159,4124.11923587,0.00011199,2]
[331833334,1720777002075,167.25339395,0.00011199,2]
[331833335,1720777022758,720.09204165,0.00011199,2]
[331833336,1720777023733,1135.89325909,0.00011199,2]
[331833337,1720777032066,914.40544204,0.00011199,2]
[331833338,1720777046325,914.2932602,0.00011199,2]
[331833339,1720777055699,676.2679898,0.00011199,2]
[331833341,1720777067157,925.81497172,0.00011199,2]
[331833343,1720777118569,1296.91418679,0.00011199,2]
[331833345,1720777139771,529.55356149,0.00011199,2]
[331833346,1720777143483,546.16417229,0.00011199,2]
[331833347,1720777199109,895.9,0.00010959,2]
[331833348,1720777214778,155.31109448,0.00011199,2]
[331833349,1720777221045,425.0530105,0.00011199,2]
[331833350,1720777226071,278.57649126,0.00011199,2]
[331833351,1720777226962,284.81221806,0.00011199,2]
[331833352,1720777227883,527.84072331,0.00011199,2]
[331833353,1720777241993,324.27278701,0.00011199,2]
[331833354,1720777253375,155.0,0.00011199,2]
[331833355,1720777277965,269.53212895,0.00011199,2]
[331833356,1720777288573,216.71317042,0.00011199,2]
[331833359,1720777373572,457.94758203,0.00011199,2]
[331833360,1720777377728,158.72665019,0.00011199,2]
[331833361,1720777386814,305.81510484,0.00011199,2]
[331833362,1720777421588,243.2910391,0.00011199,2]
[331833363,1720777434291,264.7511771,0.00011199,2]
[331833364,1720777440068,77.93477905,0.00011199,2]
[331833365,1720777440088,124.30980497,0.00011199,2]
[331833366,1720777440116,10570.49889435,0.00011199,2]
[331833367,1720777445133,159.1434954,0.00011199,2]
[331833368,1720777473325,372.98,0.00010523,2]
[331833369,1720777542812,167.25339395,0.00011199,2]
[331833370,1720777589357,3988.40957114,0.00011199,2]
[331833371,1720777602889,155.58490916,0.00011199,2]
[331833372,1720777622320,1400.85115981,0.00011199,2]
[331833374,1720777655533,476.03363013,0.00011199,2]
[331833375,1720777698875,155.07865353,0.00011199,2]
[331833376,1720777727743,620.6456991,0.00011199,2]
[331833377,1720777739816,438.24977967,0.00011199,2]
[331833378,1720777743877,287.65449414,0.00011199,2]
[331833379,1720777745719,1083.30651465,0.00011199,2]
[331833380,1720777745949,821.01096187,0.00011199,2]
[331833382,1720777817294,269.90090061,0.00011199,2]
[331833387,1720777831845,-1910.0,0.00012119,2]
[331833388,1720777831855,-172.42966663,0.00012169,2]
[331833389,1720777831864,-250.0,0.00012245,2]
[331833390,1720777831875,-832.32033404,0.00012269,2]
[331833391,1720777831887,-554.33966596,0.00012269,2]
[331833392,1720777831897,-305.78334679,0.00012273,2]
[331833393,1720777831907,-59.58697725,0.00012302,2]
[331833394,1720777831919,-381.97539025,0.00012302,2]
[331833395,1720777831928,-292.72753144,0.00012314,2]
[331833396,1720777831938,-30.21969263,0.00012314,2]
[331833397,1720777831950,-328.56714969,0.00012314,2]
[331833398,1720777831960,-478.26290368,0.00012314,2]
[331833399,1720777831971,-480.0,0.00012326,2]
[331833400,1720777831981,-170.58,0.0001237,2]
[331833401,1720777831990,-825.41,0.00012436,2]
[331833402,1720777832000,-49.50973618,0.00012549,2]
[331833403,1720777832012,-470.49026382,0.00012549,2]
[331833404,1720777832022,-192.21,0.00012616,2]
[331833405,1720777832031,-50.37339884,0.0001264,2]
[331833406,1720777832043,-199.62660116,0.0001264,2]
[331833407,1720777832052,-499.99,0.0001264,2]
[331833408,1720777832062,-193.98067132,0.00012665,2]
[331833409,1720777832078,-106.01932868,0.00012665,2]
[331833410,1720777832088,-169.54,0.00012666,2]
[331833411,1720777832098,-320.94,0.00012666,2]
[331833412,1720777832109,-150.99,0.00012666,2]
[331833413,1720777832119,-449.23,0.00012775,2]
[331833414,1720777832128,-831.44,0.00012775,2]
[331833415,1720777832138,-372.98,0.00012787,2]
[331833416,1720777832148,-343.12775708,0.00012893,2]
[331833417,1720777832160,-2441.41226186,0.00012893,2]
[331833418,1720777832173,-11774.88911757,0.00012893,2]
[331833419,1720777832184,-10583.75706558,0.00012893,2]
[331833420,1720777832195,-404.4999995,0.00012893,2]
[331833421,1720777832213,-500.0,0.00012893,2]
[331833422,1720777832228,-3406.9084682,0.00012893,2]
[331833423,1720777832246,-347.96815075,0.00012893,2]
[331833424,1720777832267,-197.42717946,0.00012893,2]
[331833425,1720777832277,-11189.42933801,0.00012899,2]
[331833439,1720777838007,-10933.01896199,0.00012899,2]
[331833440,1720777838018,-500.0,0.00012899,2]
[331833441,1720777838031,-1000.0,0.00012899,2]
[331833442,1720777838042,-308.48390406,0.00013128,2]
[331833443,1720777838054,-1668.550527,0.000133,2]
[331833444,1720777838068,-963.94977056,0.000133,2]
[331833445,1720777838083,-576.87446552,0.000133,2]
[331833446,1720777838098,-4046.54099493,0.000133,2]
[331833447,1720777838111,-665.43596,0.0001336,2]
[331833448,1720777838123,-388.58987389,0.00013399,2]
[331833449,1720777838135,-12987.7158,0.000134,2]
[331833450,1720777838148,-100000.0,0.000134,2]
[331833451,1720777838158,-788.7045,0.000134,2]
[331833452,1720777838170,-176.59021447,0.000134,2]
[331833453,1720777838181,-162.76425195,0.000134,2]
[331833454,1720777838193,-201.14974838,0.000134,2]
[331833455,1720777838204,-313.57543229,0.000134,2]
[331833456,1720777838216,-191.46738629,0.000134,2]
[331833457,1720777838228,-792.4227066,0.000134,2]
[331833458,1720777838241,-173.06447734,0.000134,2]
[331833459,1720777838253,-400.0,0.00013472,2]
[331833460,1720777838266,-400.0,0.00013472,2]
[331833461,1720777838276,-333.0,0.00013472,2]
[331833462,1720777838287,-479.75080474,0.00013472,2]
[331833463,1720777838298,-300.0,0.00013499,3]
[331833464,1720777838310,-302424.67017813,0.000135,2]
[331833465,1720777838321,-2477178.00127472,0.000135,2]
[331833466,1720777838336,-4070.16904226,0.000135,2]
[331833467,1720777838358,-902.63081299,0.000135,2]
[331833468,1720777838372,-134101.30112309,0.000135,2]
[331833469,1720777838385,-2760.4901518,0.000135,2]
[331833470,1720777838400,-7361.13473056,0.000135,2]
[331833495,1720777839960,-5795.0,0.000135,2]
[331833496,1720777839974,-659.94979241,0.000135,2]
[331833497,1720777839987,-2861.79133294,0.000135,2]
[331833498,1720777840001,-8809.41917258,0.000135,2]
[331833499,1720777840013,-4130.24694756,0.000135,2]
[331833500,1720777840026,-1277.0273187,0.000135,2]
[331833501,1720777840039,-530.86535505,0.000135,2]
[331833502,1720777840052,-145376.36696068,0.000135,2]
[331833503,1720777840065,-62484.29335375,0.000135,2]
[331833504,1720777840077,-5827.69687425,0.000135,2]
[331833505,1720777840090,-4758.8714046,0.000135,2]
[331833506,1720777840103,-198248.86786876,0.000135,2]
[331833507,1720777840194,-193410.34732084,0.000135,2]
[331833508,1720777840490,-127072.46250022,0.000135,2]
[331833511,1720777840509,-65702.69270817,0.000135,2]
[331833514,1720777840521,-453.8784,0.000135,2]
[331833516,1720777840534,-786.3329565,0.000135,2]
[331833518,1720777840547,-1587.82059042,0.000135,2]
[331833521,1720777840561,-5169.12813013,0.000135,2]
[331833525,1720777840590,-1107.05229675,0.000135,2]
[331833527,1720777840603,-1050.51565051,0.000135,2]
[331833550,1720777841403,-1382.88077296,0.000135,2]
[331833551,1720777841420,-3670.25009546,0.000135,2]
[331833552,1720777841431,-1035.81827002,0.000135,2]
[331833553,1720777841442,-362.35711128,0.000135,2]